bitfinex-derivatives/quotes_ETHF0:USTF0_20240923
["timestamp","ask_amount","ask_price","bid_price","bid_amount"]
[1727052340574,0.79038,2580.0,2579.7,2.50761]
[1727052340788,0.79038,2580.0,2579.7,2.12]
[1727052341087,0.38759,2579.9,2579.7,2.12]
[1727052341274,0.4028,2580.0,2579.7,2.12]
[1727052341275,0.79038,2580.0,2579.7,2.12]
[1727052342184,0.4028,2580.0,2579.8,0.3876]
[1727052342789,0.79037,2580.0,2579.8,0.3876]
[1727052343285,0.4028,2580.0,2579.9,0.38759]
[1727052343482,0.4028,2580.0,2579.9,2.50759]
[1727052344182,3.2078,2580.3,2580.2,0.38754]
[1727052344381,3.8752,2580.3,2580.2,2.12]
[1727052344885,4.26273,2580.3,2580.2,2.12]
[1727052345277,4.26273,2580.3,2580.1,0.38755]
[1727052345475,0.38752,2580.4,2580.1,0.38755]
[1727052346087,0.38752,2580.4,2580.2,0.38754]
[1727052346490,4.26272,2580.4,2580.2,0.38754]
[1727052346879,0.38753,2580.3,2580.1,0.38755]
[1727052347481,0.38753,2580.3,2580.0,2.12]
[1727052347482,0.38752,2580.4,2580.2,0.38754]
[1727052347884,4.26272,2580.4,2580.2,0.38754]
[1727052348488,4.26272,2580.4,2580.0,2.12]
[1727052348489,4.26272,2580.4,2580.1,0.38755]
[1727052348797,0.38752,2580.4,2580.2,0.38754]
[1727052348985,0.38752,2580.4,2580.1,0.38755]
[1727052349488,0.38752,2580.4,2580.2,0.38754]
[1727052349688,4.26272,2580.4,2580.2,0.38754]
[1727052350595,3.8752,2580.4,2580.3,0.38753]
[1727052350792,3.98409,2580.6,2580.4,0.38751]
[1727052350990,3.98409,2580.6,2580.4,0.3875]
[1727052351187,7.85929,2580.6,2580.4,0.3875]
[1727052351387,0.3875,2580.5,2580.4,0.3875]
[1727052351587,4.65149,2580.6,2580.4,0.3875]
[1727052352094,0.77629,2580.6,2580.4,0.3875]
[1727052352292,0.3888,2580.6,2580.5,0.3875]
[1727052352495,0.77628,2580.6,2580.5,2.12]
[1727052353390,0.3888,2580.6,2580.5,2.5075]
[1727052354195,0.77628,2580.6,2580.5,2.5075]
[1727052354795,0.3888,2580.6,2580.5,2.5075]
[1727052355696,0.77628,2580.6,2580.5,2.5075]
[1727052356393,0.77628,2580.6,2580.5,2.12]
[1727052356693,0.3888,2580.6,2580.5,2.5075]
[1727052357596,0.38746,2580.8,2580.6,0.38748]
[1727052357801,0.38747,2580.7,2580.5,2.89879]
[1727052358193,0.38748,2580.6,2580.5,2.5113]
[1727052358401,0.38747,2580.7,2580.5,2.89879]
[1727052359501,0.38748,2580.6,2580.5,2.5113]
[1727052359697,0.96868,2580.7,2580.0,2.12]
[1727052359895,0.38753,2580.3,2580.0,3.35886]
[1727052360098,0.38752,2580.4,2580.1,0.38755]
[1727052360400,4.17653,2580.6,2580.0,3.35886]
[1727052360401,0.4139,2580.3,2580.0,3.35886]
[1727052360605,0.38757,2580.1,2579.9,4.135]
[1727052360804,0.81385,2580.2,2579.9,4.52259]
[1727052361005,0.4263,2580.2,2580.0,2.50757]
[1727052361297,0.80144,2580.3,2580.1,0.38755]
[1727052361298,0.4139,2580.3,2580.1,0.38755]
[1727052361506,0.4139,2580.3,2580.1,0.83695]
[1727052361698,0.4139,2580.3,2580.2,0.38754]
[1727052361898,0.4139,2580.3,2580.1,0.8513]
[1727052361899,0.4139,2580.3,2580.1,1.23885]
[1727052362205,0.4139,2580.3,2580.1,1.23886]
[1727052362808,0.80143,2580.3,2580.1,0.8513]
[1727052363196,0.4139,2580.3,2580.1,1.23886]
[1727052363391,0.80144,2580.3,2580.1,0.8513]
[1727052363795,3.6217,2580.3,2580.1,0.8513]
[1727052364004,0.4139,2580.3,2580.1,1.23885]
[1727052364606,3.2078,2580.6,2580.2,2.12]
[1727052364814,3.2078,2580.6,2580.5,2.5075]
[1727052365200,3.2078,2580.6,2580.5,2.12]
[1727052365508,3.2078,2580.6,2580.5,2.5075]
[1727052368304,1.22714,2580.9,2580.6,0.38748]
[1727052368608,1.22714,2580.9,2580.7,2.12]
[1727052369499,0.38745,2580.8,2580.7,2.12]
[1727052369699,0.8397,2580.9,2580.7,2.12]
[1727052369700,1.22714,2580.9,2580.7,2.12]
[1727052370014,1.22714,2580.9,2580.7,2.50747]
[1727052370202,1.22714,2580.9,2580.7,2.12]
[1727052371704,1.22714,2580.9,2580.3,1.00970214]
[1727052371705,0.8397,2580.9,2580.3,1.00970214]
[1727052371902,0.38752,2580.4,2580.2,3.2078]
[1727052372102,3.2078,2580.6,2580.2,3.59534]
[1727052372103,0.4239,2580.3,2580.2,3.59534]
[1727052373911,0.4239,2580.3,2580.1,2.12]
[1727052374304,0.38754,2580.2,2580.1,2.12]
[1727052375209,0.81143,2580.3,2580.1,2.12]
[1727052375398,0.4239,2580.3,2580.1,2.12]
[1727052375603,0.4239,2580.3,2580.2,0.38754]
[1727052376003,3.59529,2580.6,2580.3,0.38753]
[1727052376210,3.59529,2580.6,2580.4,2.12]
[1727052376599,0.3875,2580.5,2580.4,2.12]
[1727052377702,3.2078,2580.6,2580.5,0.3875]
[1727052378215,0.38753,2580.3,2580.1,1.00970214]
[1727052378513,0.79364,2580.2,2580.0,2.12]
[1727052378710,0.4305,2580.1,2579.9,1.00970214]
[1727052378907,0.38758,2580.0,2579.8,3.12970214]
[1727052379107,0.38762,2579.7,2579.6,1.00970214]
[1727052379513,0.38761,2579.8,2579.5,1.39735214]
[1727052379812,0.4061,2579.6,2579.5,1.39735214]
[1727052380017,0.3876,2579.9,2579.6,2.50763]
[1727052380206,0.38761,2579.8,2579.6,2.12]
[1727052381320,0.38761,2579.8,2579.6,3.12970214]
[1727052381811,3.59538,2580.0,2579.7,0.38761]
[1727052382017,3.59538,2580.0,2579.8,2.12]
[1727052382216,3.2078,2580.0,2579.6,3.12970214]
[1727052382415,3.2078,2580.0,2579.4,3.55140214]
[1727052382714,0.38762,2579.7,2579.4,2.5417]
[1727052383408,0.38763,2579.7,2579.4,2.5417]
[1727052384007,0.38761,2579.8,2579.4,2.5417]
[1727052384208,0.3953,2579.9,2579.6,2.50763]
[1727052384811,0.3953,2579.9,2579.6,2.12]
[1727052385217,0.3876,2579.8,2579.6,2.12]
[1727052385419,0.78289,2579.9,2579.6,2.12]
[1727052385613,0.78289,2579.9,2579.6,2.50763]
[1727052386013,0.3953,2579.9,2579.8,2.12]
[1727052386216,0.78289,2579.9,2579.8,2.12]
[1727052386720,0.3953,2579.9,2579.8,2.12]
[1727052387309,0.38757,2580.0,2579.8,2.12]
[1727052388020,0.4305,2580.1,2579.8,2.12]
[1727052388220,0.81806,2580.1,2579.8,2.50759]
[1727052388521,0.4305,2580.1,2579.9,0.38758]
[1727052390317,0.4707,2580.2,2580.1,0.38756]
[1727052390509,3.2078,2580.3,2580.1,0.38756]
[1727052391810,3.59533,2580.3,2580.1,0.38756]
[1727052392520,0.38752,2580.4,2580.1,0.38756]
[1727052392709,3.6659,2580.5,2580.3,2.12]
[1727052392914,3.2078,2580.5,2580.4,0.38751]
[1727052393110,3.2078,2580.5,2580.4,0.85001]
[1727052393311,3.2078,2580.5,2580.4,1.74381]
[1727052396623,0.4294,2580.8,2580.4,5.57380214]
[1727052396813,5.6055283,2581.3,2580.9,0.38744]
[1727052397014,0.38739,2581.2,2581.0,0.4626]
[1727052397321,4.06078,2581.3,2580.9,2.50744]
[1727052398323,0.38739,2581.2,2580.9,2.12]
[1727052398516,3.6734,2581.3,2581.0,0.38741]
[1727052398716,3.6734,2581.3,2580.9,2.12]
[1727052398919,3.6734,2581.3,2581.0,0.38741]
[1727052399228,3.6734,2581.3,2581.0,0.38742]
[1727052399423,3.6734,2581.3,2581.1,0.3874]
[1727052399929,3.6734,2581.3,2581.0,0.38741]
[1727052400419,3.6734,2581.3,2581.1,0.3874]
[1727052400819,3.6734,2581.3,2581.2,2.50739]
[1727052401020,3.2078,2581.3,2581.2,2.50739]
[1727052402224,3.2078,2581.3,2581.2,2.12]
[1727052402423,3.2078,2581.3,2581.2,2.50739]
[1727052403022,3.6355,2581.4,2581.2,2.50739]
[1727052403829,4.02287,2581.4,2581.1,0.3874]
[1727052404030,4.02287,2581.4,2580.9,0.38743]
[1727052404031,0.38738,2581.3,2580.9,0.38743]
[1727052404237,0.3874,2581.2,2580.8,3.59524]
[1727052404533,0.3874,2581.2,2580.4,5.53221214]
[1727052404534,2.12,2581.2,2580.4,5.53221214]
[1727052404837,0.38746,2580.8,2580.5,0.38749]
[1727052405534,0.83823,2581.0,2580.7,0.38746]
[1727052405926,0.4508,2581.0,2580.8,0.38745]
[1727052406835,0.4508,2581.0,2580.7,2.50746]
[1727052406836,0.83822,2581.0,2580.7,2.50746]
[1727052407028,0.38744,2580.9,2580.7,2.12]
[1727052407233,0.4508,2581.0,2580.7,2.12]
[1727052407234,0.83823,2581.0,2580.7,2.50746]
[1727052408224,0.38748,2580.7,2580.4,4.52251]
[1727052408428,0.38748,2580.7,2580.4,0.38751]
[1727052408638,0.38748,2580.6,2580.4,0.38751]
[1727052408832,0.38748,2580.6,2580.3,3.86722]
[1727052410037,0.38748,2580.7,2580.4,0.38751]
[1727052410226,0.38748,2580.6,2580.4,0.38751]
[1727052410430,0.38748,2580.7,2580.3,3.4797]
[1727052410631,0.38747,2580.7,2580.5,2.50749]
[1727052410942,0.38746,2580.8,2580.5,2.50749]
[1727052412133,0.38747,2580.7,2580.5,2.50749]
[1727052412542,3.6637,2580.9,2580.5,2.12]
[1727052412839,4.05115,2580.9,2580.6,0.38748]
[1727052413039,0.4559,2580.9,2580.7,0.38746]
[1727052413431,0.4559,2580.9,2580.8,0.38745]
[1727052414437,0.4559,2580.9,2580.7,2.50746]
[1727052414737,0.84334,2580.9,2580.7,2.50746]
[1727052415538,0.4559,2580.9,2580.7,2.50746]
[1727052416341,0.84334,2580.9,2580.7,2.50746]
[1727052416539,3.2078,2581.2,2581.0,0.38741]
[1727052416732,3.2078,2581.2,2581.0,2.12]
[1727052416932,3.2078,2581.2,2581.0,2.50741]
[1727052417240,3.2078,2581.2,2581.1,0.38741]
[1727052417431,3.2078,2581.2,2581.0,2.50741]
[1727052417639,3.2078,2581.2,2581.1,0.38741]
[1727052418932,3.2078,2581.2,2581.1,4.26181]
[1727052419143,3.644,2581.6,2581.3,0.38737]
[1727052419334,3.644,2581.6,2581.4,0.38736]
[1727052419838,4.03134,2581.6,2581.3,0.38737]
[1727052420043,0.4362,2581.6,2581.5,0.38735]
[1727052420250,2.0103483,2582.3,2582.2,0.38724]
[1727052420436,4.0882,2582.9,2582.6,0.38718]
[1727052420636,4.47534,2582.9,2582.6,2.12]
[1727052420836,4.0882,2582.9,2582.6,2.50717]
[1727052421044,4.0882,2582.9,2582.7,0.38717]
[1727052421253,3.5949,2583.2,2582.8,2.12]
[1727052421449,3.5949,2583.2,2582.8,2.50715]
[1727052421660,0.38711,2583.1,2582.8,2.12]
[1727052422143,5.3278,2582.9,2581.9,1.00970214]
[1727052422345,3.2078,2582.6,2581.9,2.50729]
[1727052422555,0.38722,2582.4,2582.1,2.12]
[1727052422752,1.29751,2582.5,2582.1,2.50726]
[1727052423046,0.4217,2582.3,2582.1,2.12]
[1727052423248,0.80893,2582.3,2582.1,2.12]
[1727052423446,0.4217,2582.3,2582.1,2.12]
[1727052423840,0.4217,2582.3,2582.2,2.12]
[1727052424046,0.4217,2582.3,2582.2,2.50724]
[1727052424249,0.4587,2582.5,2582.4,0.38721]
[1727052424453,3.2078,2582.6,2582.4,2.12]
[1727052425467,1.25327,2582.7,2582.4,2.12]
[1727052425666,3.2078,2582.6,2582.4,2.12]
[1727052425870,0.8661,2582.7,2582.4,2.50721]
[1727052426266,0.8661,2582.7,2582.6,2.12]
[1727052426467,0.8661,2582.7,2582.6,2.50718]
[1727052426771,0.38711,2583.1,2582.6,5.992]
[1727052427071,3.2078,2583.6,2583.4,0.38705]
[1727052427285,0.4425,2584.4,2583.5,2.12]
[1727052427570,0.4425,2584.4,2584.2,2.12]
[1727052427571,0.82942,2584.4,2584.2,2.12]
[1727052428176,3.8696,2584.3,2583.9,2.12]
[1727052428377,3.6557,2584.7,2584.2,2.12]
[1727052428568,0.38689,2584.6,2584.2,2.12]
[1727052428762,3.6557,2584.7,2584.4,2.12]
[1727052428968,0.4479,2584.7,2584.4,2.12]
[1727052429667,0.4425,2584.8,2584.6,2.12]
[1727052429871,0.82936,2584.8,2584.4,2.12]
[1727052430072,0.38689,2584.6,2584.4,2.12]
[1727052430277,0.4425,2584.8,2584.4,2.12]
[1727052430473,0.4257,2584.9,2584.7,2.12]
[1727052430977,0.38688,2584.7,2584.3,2.12]
[1727052431269,0.38689,2584.6,2584.1,7.185]
[1727052431476,0.38688,2584.7,2584.3,2.12]
[1727052431680,0.4257,2584.9,2584.6,2.12]
[1727052431871,3.2078,2584.7,2584.6,2.12]
[1727052432465,3.2078,2585.3,2584.6,5.9888]
[1727052432676,3.2078,2585.3,2584.4,3.2078]
[1727052432677,3.59459,2585.3,2585.0,2.12]
[1727052432882,3.2078,2585.3,2585.0,2.12]
[1727052433180,0.38675,2585.5,2585.2,2.12]
[1727052434082,0.38677,2585.4,2585.2,2.12]
[1727052434278,0.38683,2585.0,2584.8,2.12]
[1727052434579,3.2078,2585.3,2584.8,2.12]
[1727052434580,0.38682,2585.1,2584.8,2.12]
[1727052434972,0.38682,2585.0,2584.8,2.12]
[1727052435272,0.38682,2585.1,2584.8,2.12]
[1727052435485,0.38678,2585.3,2585.0,2.12]
[1727052435677,0.38678,2585.3,2584.9,0.38683]
[1727052435678,4.0861,2585.6,2585.2,2.12]
[1727052435875,0.38675,2585.5,2585.2,2.12]
[1727052436579,4.0861,2585.6,2585.4,0.38676]
[1727052436580,3.2078,2585.6,2585.4,0.38676]
[1727052436772,3.2078,2585.6,2585.5,2.12]
[1727052437373,3.59453,2585.6,2585.5,2.12]
[1727052437574,3.2078,2585.6,2585.3,2.12]
[1727052437777,0.38681,2585.1,2584.9,2.12]
[1727052438480,0.3868,2585.2,2584.9,2.12]
[1727052438781,0.4215,2585.5,2585.1,2.12]
[1727052439173,0.38678,2585.3,2585.1,2.12]
[1727052440382,2.5432,2586.1,2584.9,0.38683]
[1727052440383,0.784,2586.8,2586.6,0.38658]
[1727052440574,0.784,2586.8,2585.9,0.96673]
[1727052440575,6.02369,2586.8,2586.7,5.71437]
[1727052440778,0.3864,2587.9,2586.7,5.3278]
[1727052440973,0.19123515,2588.0,2586.7,5.3278]
[1727052440974,0.19123515,2588.0,2587.7,3.2078]
[1727052441176,0.19123515,2588.0,2587.8,2.12]
[1727052441385,0.19123515,2588.0,2587.7,3.2078]
[1727052441386,3.868,2587.8,2587.7,3.2078]
[1727052441594,0.38646,2587.5,2586.9,3.2078]
[1727052441886,3.868,2587.2,2586.9,3.2078]
[1727052442183,6.02369,2587.8,2586.6,3.2078]
[1727052442184,3.868,2587.0,2586.6,3.2078]
[1727052442380,0.38655,2586.9,2586.6,3.2078]
[1727052442579,0.38661,2586.5,2586.2,3.2078]
[1727052442795,0.38663,2586.3,2586.2,3.2078]
[1727052442991,3.868,2586.3,2586.2,3.2078]
[1727052443286,0.96624,2587.3,2586.2,3.2078]
[1727052443479,3.868,2586.6,2586.5,3.2078]
[1727052444188,0.4505,2587.2,2586.5,3.2078]
[1727052444384,3.868,2586.8,2586.5,3.2078]
[1727052445078,0.837,2587.2,2586.5,3.2078]
[1727052445276,3.868,2586.9,2586.8,3.2078]
[1727052445679,6.47419,2587.2,2586.8,3.2078]
[1727052445680,0.4505,2587.2,2586.8,3.2078]
[1727052445978,6.47419,2587.2,2587.1,3.2078]
[1727052446179,6.47419,2587.2,2586.8,3.2078]
[1727052446180,0.38651,2587.1,2586.8,3.2078]
[1727052446380,3.868,2586.9,2586.5,3.2078]
[1727052446573,3.868,2586.9,2585.3,0.96692]
[1727052446574,3.868,2586.6,2585.9,3.2078]
[1727052446779,3.868,2586.2,2585.8,0.3867]
[1727052446985,0.38659,2586.6,2585.7,5.5143]
[1727052446986,3.868,2586.4,2586.1,3.59446]
[1727052447484,40.8,2587.0,2586.3,2.6]
[1727052447687,3.868,2586.8,2586.6,3.59438]
[1727052447982,3.868,2586.8,2586.6,3.2078]
[1727052448186,3.868,2586.7,2586.6,3.2078]
[1727052448685,9.89169,2586.7,2586.6,3.2078]
[1727052449279,10.27826,2586.7,2586.6,3.2078]
[1727052449481,0.38659,2586.6,2586.3,3.2078]
[1727052449785,3.868,2586.4,2586.3,3.2078]
[1727052449981,3.868,2586.5,2586.3,5.8078]
[1727052450183,0.4568,2586.9,2586.3,5.8078]
[1727052450387,3.868,2586.7,2586.6,3.2078]
[1727052450693,6.02369,2586.9,2586.6,3.59438]
[1727052451010,6.02369,2586.9,2586.7,0.38657]
[1727052451011,3.868,2586.9,2586.7,0.38657]
[1727052451191,3.868,2586.9,2586.7,2.98657]
[1727052452084,0.38649,2587.3,2586.7,3.86917]
[1727052452284,0.8723,2587.5,2586.9,3.2078]
[1727052452285,3.868,2587.0,2586.9,3.2078]
[1727052452982,10.27821,2587.0,2586.9,3.2078]
[1727052453188,15.89169,2587.0,2586.4,3.2078]
[1727052453389,0.3866,2586.5,2586.4,3.2078]
[1727052453588,3.868,2586.5,2586.4,3.2078]
[1727052453891,0.38658,2586.7,2586.4,3.2078]
[1727052454195,3.868,2586.7,2586.4,5.8078]
[1727052454378,9.89169,2586.7,2586.4,5.8078]
[1727052454582,3.868,2586.7,2586.4,5.8078]
[1727052454790,0.96627,2587.2,2586.5,0.81129]
[1727052454992,3.868,2586.9,2586.7,3.2078]
[1727052455184,4.25454,2586.9,2586.7,3.2078]
[1727052455989,3.868,2586.9,2586.7,3.2078]
[1727052456682,4.25454,2586.9,2586.7,3.2078]
[1727052457789,3.868,2586.9,2586.7,3.2078]
[1727052458589,0.38655,2586.8,2586.7,3.2078]
[1727052458795,4.25455,2586.9,2586.7,3.2078]
[1727052458984,4.25454,2586.9,2586.7,3.2078]
[1727052459884,3.868,2586.9,2586.7,3.2078]
[1727052460685,0.4245,2587.3,2586.7,5.8078]
[1727052460990,3.868,2587.1,2587.0,3.2078]
[1727052461782,4.25451,2587.1,2587.0,3.2078]
[1727052461983,0.4245,2587.3,2587.0,3.2078]
[1727052462294,4.2925,2587.3,2587.0,3.59432]
[1727052462489,4.67898,2587.3,2587.0,3.2078]
[1727052462794,4.25451,2587.1,2587.0,3.2078]
[1727052463291,4.25451,2587.1,2586.7,2.6]
[1727052463292,0.38655,2586.9,2586.7,5.8078]
[1727052463490,3.868,2586.8,2586.7,5.8078]
[1727052463689,1.39073,2587.3,2586.7,5.8078]
[1727052463988,0.4636,2587.4,2586.7,5.8078]
[1727052463989,0.38644,2587.6,2587.2,0.38649]
[1727052464184,3.868,2587.4,2587.3,3.2078]
[1727052464793,4.25446,2587.4,2587.3,3.2078]
[1727052465091,10.27815,2587.4,2587.3,3.2078]
[1727052465290,0.38652,2587.1,2587.0,3.2078]
[1727052465489,0.38655,2586.9,2586.7,4.135]
[1727052465796,3.868,2586.9,2586.6,3.2078]
[1727052465995,4.25455,2586.9,2586.6,3.2078]
[1727052466198,3.868,2586.7,2586.6,3.2078]
[1727052466690,9.89169,2586.7,2586.6,3.2078]
[1727052466889,10.27826,2586.7,2586.6,3.2078]
[1727052467201,0.38654,2587.0,2586.6,3.59438]
[1727052467397,3.868,2586.9,2586.7,2.98656]
[1727052467585,3.868,2586.9,2586.8,3.2078]
[1727052467995,1.40314,2587.3,2586.8,3.2078]
[1727052468193,3.868,2587.0,2586.8,3.2078]
[1727052468498,3.868,2587.1,2586.9,0.38653]
[1727052468685,3.868,2587.1,2586.9,0.84903]
[1727052469289,0.38647,2587.4,2587.0,0.38652]
[1727052469489,3.868,2587.3,2587.1,3.2078]
[1727052469692,6.02369,2587.5,2587.1,5.8078]
[1727052469893,3.868,2587.5,2587.4,3.2078]
[1727052470092,3.868,2587.5,2587.4,3.59426]
[1727052470287,0.4442,2587.8,2587.4,5.8078]
[1727052470492,6.02369,2587.8,2587.7,3.59422]
[1727052470790,3.868,2587.8,2587.7,6.19422]
[1727052470999,0.4442,2588.1,2587.7,6.19422]
[1727052471000,0.4442,2588.1,2587.8,0.3864]
[1727052471202,3.868,2587.9,2587.8,0.3864]
[1727052471395,3.868,2587.9,2587.8,3.5942]
[1727052471699,0.4442,2588.1,2587.8,4.0399]
[1727052471898,3.868,2588.0,2587.8,4.0399]
[1727052472101,3.868,2588.0,2587.8,3.6535]
[1727052472901,6.02369,2588.0,2587.8,3.6535]
[1727052473108,3.868,2587.9,2587.8,3.2078]
[1727052473596,0.4442,2588.1,2587.8,3.5942]
[1727052473898,3.868,2588.0,2587.8,3.5942]
[1727052474408,0.81474,2588.3,2587.9,0.38638]
[1727052474592,3.868,2588.1,2587.9,0.8482]
[1727052474796,3.868,2588.1,2588.0,3.2078]
[1727052475099,0.38629,2588.6,2588.1,0.38636]
[1727052475301,6.40998,2588.6,2588.5,3.2078]
[1727052475698,10.27798,2588.6,2588.5,3.2078]
[1727052476298,10.27798,2588.6,2588.5,5.8078]
[1727052476694,4.44370538,2589.6,2589.3,18.4132]
[1727052476695,2.00708667,2589.6,2589.3,18.4132]
[1727052476894,0.784,2590.1,2589.3,18.4132]
[1727052476895,0.784,2591.0,2589.5,5.8078]
[1727052477199,8.62641412,2590.9,2590.5,5.8078]
[1727052477390,8.62641412,2591.5,2590.8,5.8078]
[1727052477587,8.62641412,2591.5,2591.2,2.6]
[1727052477794,0.4176,2591.9,2591.2,2.6]
[1727052477997,8.62641412,2591.6,2591.2,2.6]
[1727052478292,6.44129,2591.9,2590.6,0.4156]
[1727052478293,8.62641412,2591.7,2591.4,6.1278]
[1727052478495,9.23149,2591.9,2591.1,3.2078]
[1727052478698,0.3859,2591.2,2591.1,3.2078]
[1727052478909,9.01231412,2591.2,2591.1,3.2078]
[1727052479199,0.38592,2591.1,2590.9,3.2078]
[1727052479398,8.62641412,2591.0,2590.9,3.2078]
[1727052479792,14.65010412,2591.0,2590.9,3.2078]
[1727052480198,14.65010412,2591.0,2590.6,3.2078]
[1727052480393,8.62641412,2590.6,2590.5,3.2078]
[1727052480799,14.65010412,2590.6,2590.5,3.2078]
[1727052481105,14.65010412,2590.6,2589.0,2.92]
[1727052481106,5.41861412,2589.8,2589.0,2.92]
[1727052481297,5.41861412,2589.6,2589.2,3.2078]
[1727052481610,5.41861412,2589.6,2589.1,0.3862]
[1727052481800,5.41861412,2589.6,2588.9,0.4019]
[1727052481801,5.41861412,2589.2,2588.9,0.4019]
[1727052481997,5.41861412,2589.1,2588.9,0.4019]
[1727052482199,5.41861412,2589.1,2588.7,3.59406]
[1727052482200,5.41861412,2589.1,2588.7,3.2078]
[1727052482504,5.41861412,2589.1,2588.6,2.92]
[1727052482505,5.41861412,2589.0,2588.6,2.92]
[1727052482802,3.2078,2590.0,2588.9,2.92]
[1727052483005,5.41861412,2589.6,2589.1,3.2078]
[1727052483206,5.41861412,2589.9,2589.3,2.92]
[1727052483503,6.02369,2590.0,2589.3,2.92]
[1727052483504,5.41861412,2589.8,2589.3,2.92]
[1727052483697,5.41861412,2589.5,2589.0,2.92]
[1727052484195,3.2078,2589.7,2589.4,0.38616]
[1727052484396,2.81589,2589.7,2589.3,2.92]
[1727052484598,5.41861412,2589.7,2589.3,2.92]
[1727052484792,8.23450412,2589.7,2589.3,2.92]
[1727052484999,5.41861412,2589.6,2589.2,0.421]
[1727052485195,5.41861412,2589.5,2589.2,0.421]
[1727052485803,5.41861412,2589.5,2589.2,0.8072]
[1727052485995,3.2078,2589.8,2589.3,0.38617]
[1727052486196,5.41861412,2589.7,2589.4,0.38616]
[1727052486396,5.41861412,2589.7,2589.3,0.38618]
[1727052486591,5.41861412,2589.7,2589.2,0.421]
[1727052486592,5.41861412,2589.7,2589.5,0.38615]
[1727052486797,3.2078,2589.8,2589.3,2.92]
[1727052486997,3.2078,2590.2,2589.6,0.38613]
[1727052487197,5.41861412,2590.0,2589.6,0.38613]
[1727052487397,5.41861412,2590.0,2589.4,3.2078]
[1727052487611,8.23450412,2590.0,2589.6,0.38613]
[1727052487902,8.23450412,2590.0,2589.4,3.2078]
[1727052487903,8.23450412,2590.0,2589.7,0.38611]
[1727052488102,3.2078,2590.9,2589.8,5.033]
[1727052488314,3.2078,2590.9,2590.4,2.92]
[1727052488495,5.80458412,2590.8,2590.1,6.1278]
[1727052488700,5.41861412,2590.7,2590.2,5.033]
[1727052488899,8.62641412,2590.7,2590.3,0.38603]
[1727052489203,3.2078,2590.7,2590.4,0.38601]
[1727052489506,3.2078,2590.7,2590.3,0.78802]
[1727052489812,3.2078,2590.7,2590.4,0.38601]
[1727052490315,4.17246,2591.5,2590.5,0.38599]
[1727052490497,6.02369,2591.5,2590.5,2.92]
[1727052490705,5.41861412,2591.4,2590.9,2.92]
[1727052490914,0.38588,2591.3,2590.9,2.92]
[1727052491109,8.23450412,2591.4,2590.9,3.30593]
[1727052491303,8.62037412,2591.4,2590.9,8.33793]
[1727052491806,5.41861412,2591.4,2591.1,0.38591]
[1727052492004,5.41861412,2591.4,2591.2,0.38589]
[1727052492208,5.41861412,2591.4,2591.1,0.38591]
[1727052492410,11.82818412,2591.4,2590.9,3.30593]
[1727052492600,3.2078,2591.7,2590.9,2.92]
[1727052492805,8.62641412,2591.7,2591.3,2.92]
[1727052493004,11.44230412,2591.7,2591.4,0.38587]
[1727052493209,11.44230412,2591.7,2591.3,2.92]
[1727052493210,5.41861412,2591.4,2591.1,0.4043]
[1727052493507,4.17242,2591.6,2590.9,3.2078]
[1727052493701,5.41861412,2591.0,2590.5,3.3077]
[1727052493897,5.41861412,2590.8,2590.5,3.3077]
[1727052494101,3.2078,2591.2,2590.5,3.3077]
[1727052494102,5.41861412,2591.1,2590.5,3.3077]
[1727052494303,5.41861412,2591.0,2590.5,3.3077]
[1727052494503,5.41861412,2590.8,2590.5,3.3077]
[1727052494711,5.41861412,2590.7,2590.3,5.41703]
[1727052494903,5.41861412,2590.7,2590.3,5.031]
[1727052495106,8.23450412,2590.7,2590.3,5.41703]
[1727052495411,8.62641412,2590.4,2590.0,3.2078]
[1727052495612,8.62641412,2590.4,2589.7,3.2078]
[1727052495613,5.80467412,2590.1,2589.7,3.2078]
[1727052495816,5.41861412,2589.9,2589.7,3.2078]
[1727052496007,5.41861412,2589.9,2589.7,3.59391]
[1727052496411,3.2078,2590.4,2590.1,0.38605]
[1727052496706,3.2078,2590.4,2589.7,6.1278]
[1727052496908,0.38593,2591.0,2590.1,2.92]
[1727052497112,5.41861412,2590.5,2590.4,0.38602]
[1727052498013,5.41861412,2590.5,2590.3,3.59382]
[1727052498210,5.41861412,2590.5,2590.3,0.38602]
[1727052498517,5.41861412,2590.5,2590.4,0.38602]
[1727052499503,3.2078,2590.9,2590.7,0.38597]
[1727052499812,3.2078,2590.9,2590.8,0.38596]
[1727052500407,3.2078,2590.9,2590.7,0.38597]
[1727052500617,3.2078,2590.9,2590.8,0.38596]
[1727052501108,0.38588,2591.4,2591.0,0.38592]
[1727052501412,0.38588,2591.4,2590.4,4.17284]
[1727052501413,5.41861412,2591.2,2591.1,0.38591]
[1727052501610,5.41861412,2591.3,2591.0,0.416]
[1727052501810,5.41861412,2591.3,2591.1,0.38591]
[1727052502207,5.41861412,2591.2,2591.0,3.6238]
[1727052502514,5.41861412,2591.2,2591.1,0.38591]
[1727052503011,5.41861412,2591.2,2591.1,0.39591]
[1727052503513,8.23450412,2591.2,2591.1,0.01]
[1727052504120,8.62040412,2591.2,2591.1,0.01]
[1727052504721,11.82820412,2591.2,2591.1,0.01]
[1727052505018,11.82820412,2591.2,2590.2,3.5818]